bitfinex-derivatives/quotes_ETHF0:USTF0_20241231
["timestamp","ask_amount","ask_price","bid_price","bid_amount"]
[1735634553163,5.76827848,3391.5,3390.8,3.2078]
[1735634553461,5.76827848,3391.5,3391.3,3.2078]
[1735634554165,0.23626,3391.4,3391.3,3.2078]
[1735634554358,5.76827848,3391.5,3391.3,3.2078]
[1735634554558,0.4821,3391.7,3391.3,3.2078]
[1735634554761,0.71834,3391.7,3391.3,3.44406]
[1735634554958,0.4821,3391.7,3391.3,3.2078]
[1735634555362,0.71834,3391.7,3391.3,3.2078]
[1735634555664,0.4821,3391.7,3391.3,3.2078]
[1735634555867,0.23625,3391.5,3391.3,3.2078]
[1735634556164,0.4821,3391.7,3391.3,3.2078]
[1735634556559,0.4821,3391.7,3391.3,3.44406]
[1735634556754,0.4821,3391.7,3391.3,3.2078]
[1735634556961,1.24221,3392.1,3391.6,0.23624]
[1735634557254,1.006,3392.1,3391.4,0.948]
[1735634557459,0.23625,3391.5,3391.3,3.2078]
[1735634557670,0.23626,3391.4,3391.3,3.2078]
[1735634557967,0.72316,3391.4,3391.3,3.2078]
[1735634558963,6.53841684,3391.4,3390.8,3.2078]
[1735634559164,0.23629,3390.9,3390.8,3.2078]
[1735634559665,0.9514,3391.3,3390.8,3.2078]
[1735634559862,0.23629,3390.9,3390.4,3.44412]
[1735634560065,0.23627,3391.2,3390.4,3.44412]
[1735634560261,0.23629,3391.0,3390.5,0.23632]
[1735634560463,0.9514,3391.3,3390.4,3.2078]
[1735634560669,0.23629,3391.0,3390.5,0.23632]
[1735634561163,0.2363,3390.9,3390.4,3.44413]
[1735634561373,0.23631,3390.7,3390.4,3.2078]
[1735634561570,0.9514,3391.3,3390.4,3.2078]
[1735634561777,0.72642,3390.6,3390.4,3.2078]
[1735634562267,0.4901,3390.6,3390.4,3.2078]
[1735634562961,0.9514,3391.3,3390.4,3.44413]
[1735634563165,0.4901,3391.2,3390.4,3.2078]
[1735634563375,0.2363,3390.9,3390.8,3.2078]
[1735634563566,0.23629,3391.1,3390.8,3.2078]
[1735634563770,3.2078,3391.4,3391.0,0.23629]
[1735634564164,0.72635,3391.7,3391.2,0.23627]
[1735634564372,6.00451848,3391.8,3391.2,3.2078]
[1735634564568,5.76827848,3391.8,3391.6,3.44405]
[1735634564872,0.23622,3392.0,3391.6,3.44405]
[1735634565068,0.23623,3391.9,3391.6,3.2078]
[1735634565365,1.4759,3392.3,3391.6,3.2078]
[1735634565366,0.23624,3391.7,3391.6,3.2078]
[1735634565570,0.23625,3391.6,3391.1,3.44408]
[1735634565775,0.23625,3391.6,3391.2,0.23628]
[1735634565970,0.23625,3391.6,3391.3,40.8]
[1735634566470,0.23625,3391.6,3391.2,0.23628]
[1735634566667,0.23625,3391.6,3391.5,3.2078]
[1735634567471,0.59055,3392.0,3391.0,3.2078]
[1735634567674,0.4827,3391.5,3391.0,3.2078]
[1735634567876,0.4827,3391.5,3391.1,0.23627]
[1735634568074,0.4827,3391.5,3391.0,3.2078]
[1735634568272,0.23627,3391.3,3391.0,3.44408]
[1735634568579,2.84371684,3392.2,3391.0,3.2078]
[1735634568776,0.4827,3392.1,3391.5,3.2078]
[1735634569074,5.76827848,3392.5,3391.5,3.2078]
[1735634569275,2.84371684,3392.6,3391.9,3.2078]
[1735634569476,0.23621,3392.0,3391.9,3.2078]
[1735634569675,0.23623,3391.9,3391.5,3.44405]
[1735634570078,0.23624,3391.7,3391.5,3.2078]
[1735634570376,0.4827,3392.3,3391.5,3.2078]
[1735634570970,0.23624,3391.8,3391.5,3.2078]
[1735634571173,0.4827,3392.3,3391.8,0.23623]
[1735634571368,0.4827,3392.3,3391.6,0.23625]
[1735634571575,4.46309,3392.5,3391.5,3.2078]
[1735634571768,1.0191,3392.5,3392.2,0.2362]
[1735634571970,1.0191,3392.5,3392.1,0.23621]
[1735634572172,5.76827848,3392.6,3392.3,0.23619]
[1735634572374,0.23618,3392.6,3392.2,0.2362]
[1735634572770,0.5056,3392.8,3392.5,0.23618]
[1735634572974,0.5056,3392.8,3392.4,3.44399]
[1735634573170,0.5056,3392.8,3392.5,0.23619]
[1735634573368,0.5056,3392.8,3392.5,0.23618]
[1735634573774,5.76827848,3392.9,3392.4,3.2078]
[1735634573980,4.5028,3393.5,3392.4,3.2078]
[1735634573981,6.00441848,3393.2,3392.7,0.23617]
[1735634574275,5.76827848,3393.2,3392.4,3.2078]
[1735634574880,0.23618,3392.5,3392.4,3.2078]
[1735634575581,0.4977,3392.9,3392.4,3.2078]
[1735634575967,0.23617,3392.7,3392.4,3.2078]
[1735634576172,0.23618,3392.6,3392.4,3.2078]
[1735634576369,0.23618,3392.5,3392.0,3.44401]
[1735634576577,0.4775,3392.5,3392.1,0.23621]
[1735634576782,0.4775,3392.5,3392.0,3.2078]
[1735634576783,0.71369,3392.5,3392.0,3.2078]
[1735634577082,0.71369,3392.5,3392.0,3.44401]
[1735634577481,0.4775,3392.5,3392.1,0.23621]
[1735634578083,0.71368,3392.5,3392.1,0.23621]
[1735634578986,0.4775,3392.5,3392.4,3.2078]
[1735634579288,0.4977,3392.9,3392.4,3.44399]
[1735634579479,0.4775,3392.8,3392.4,3.2078]
[1735634579686,0.23618,3392.6,3392.4,3.2078]
[1735634579888,0.4775,3392.8,3392.4,3.2078]
[1735634580090,0.23618,3392.5,3392.4,3.2078]
[1735634580284,0.23618,3392.6,3392.4,3.2078]
[1735634580488,0.4775,3392.8,3392.0,3.2078]
[1735634580684,5.76827848,3393.5,3393.2,0.23613]
[1735634581080,6.89530695,3393.9,3393.2,0.23613]
[1735634581081,5.76827848,3393.4,3393.2,0.23613]
[1735634581385,5.76827848,3393.4,3393.3,0.23613]
[1735634582381,0.4992,3394.0,3393.1,0.9487]
[1735634582692,0.4992,3394.0,3393.7,3.2078]
[1735634582989,0.23609,3393.8,3393.7,3.2078]
[1735634583285,0.23612,3393.4,3393.3,3.2078]
[1735634583783,0.23616,3392.9,3392.8,3.2078]
[1735634583992,7.84371684,3393.4,3392.0,4.40162641]
[1735634583993,0.23619,3392.5,3392.4,3.2078]
[1735634584379,0.4963,3392.8,3392.0,4.40162641]
[1735634584585,0.23619,3392.5,3392.0,4.63783641]
[1735634584788,0.4963,3392.8,3392.0,4.40162641]
[1735634585088,0.9911,3392.4,3392.0,4.40162641]
[1735634585284,0.9911,3392.4,3392.0,0.23622]
[1735634585484,0.23617,3392.7,3392.3,3.2078]
[1735634585683,0.4963,3392.8,3392.3,3.2078]
[1735634585987,0.23619,3392.5,3392.3,3.2078]
[1735634586182,5.76827848,3392.4,3392.3,3.2078]
[1735634586591,6.00446848,3392.4,3392.3,3.2078]
[1735634587092,0.23622,3392.0,3391.9,3.2078]
[1735634589291,0.74702,3392.0,3391.9,3.2078]
[1735634590689,0.5108,3392.0,3391.9,3.2078]
[1735634592299,0.74702,3392.0,3391.9,3.2078]
[1735634592495,0.5108,3392.0,3391.9,3.2078]
[1735634592994,0.74702,3392.0,3391.9,3.2078]
[1735634596207,0.5108,3392.0,3391.9,3.2078]
[1735634596699,0.74702,3392.0,3391.9,3.2078]
[1735634596895,0.23621,3392.1,3391.9,3.2078]
[1735634597300,0.23622,3392.0,3391.9,3.2078]
[1735634598399,5.23622,3392.0,3391.9,3.2078]
[1735634598605,0.23626,3391.4,3391.3,3.2078]
[1735634598901,2.84371684,3391.7,3390.8,3.2078]
[1735634599106,0.23629,3390.9,3390.8,3.2078]
[1735634599311,0.82696,3391.2,3390.4,3.2078]
[1735634599499,3.82271684,3391.3,3390.4,3.2078]
[1735634599804,0.23632,3390.6,3390.4,3.2078]
[1735634600397,3.82271684,3391.3,3390.4,3.2078]
[1735634600598,0.23631,3390.7,3390.4,3.2078]
[1735634601403,4.41339684,3391.3,3390.4,3.2078]
[1735634601712,0.23632,3390.6,3390.4,3.2078]
[1735634602104,0.23632,3390.5,3390.4,3.2078]
[1735634604010,4.62377728,3390.8,3390.4,3.2078]
[1735634604209,0.23632,3390.5,3390.4,3.2078]
[1735634607304,0.23636,3390.1,3390.0,3.2078]
[1735634608310,0.9744,3390.4,3390.0,3.2078]
[1735634608613,0.23634,3390.2,3390.0,3.2078]
[1735634611312,0.9744,3390.4,3390.0,3.2078]
[1735634611513,0.23635,3390.1,3390.0,3.2078]
[1735634612123,0.23634,3390.3,3390.0,3.2078]
[1735634612513,0.4731,3390.9,3390.2,2.38027955]
[1735634612717,8.34037728,3391.2,3390.4,3.2078]
[1735634612911,7.83157728,3391.2,3390.5,2.38027955]
[1735634613106,7.83157728,3391.2,3390.4,3.2078]
[1735634613714,7.83157728,3391.2,3390.5,0.23632]
[1735634613915,3.86917955,3391.6,3390.9,3.2078]
[1735634614315,0.23628,3391.1,3390.9,3.2078]
[1735634614812,0.23625,3391.5,3391.0,0.23629]
[1735634615118,0.23626,3391.4,3390.9,3.44409]
[1735634615315,1.4889,3391.6,3391.0,0.23629]
[1735634615517,0.5088,3391.6,3391.2,0.23627]
[1735634615815,3.2078,3391.8,3391.0,0.963]
[1735634616120,0.23624,3391.7,3391.2,0.23627]
[1735634616513,0.23624,3391.7,3391.0,0.963]
[1735634616514,0.23624,3391.7,3391.1,0.23628]
[1735634616817,3.44404,3391.8,3391.3,0.23627]
[1735634617015,3.2078,3391.8,3391.0,0.963]
[1735634617220,0.23626,3391.5,3391.0,1.19929]
[1735634617417,0.4784,3392.1,3391.3,3.2078]
[1735634617611,0.71462,3392.1,3391.7,3.2078]
[1735634617919,0.9494,3392.2,3391.8,0.23623]
[1735634618117,0.9494,3392.2,3391.7,3.44404]
[1735634618317,1.18561,3392.2,3391.7,3.2078]
[1735634618507,0.9494,3392.2,3391.7,3.2078]
[1735634618709,0.4802,3392.2,3391.7,3.2078]
[1735634618908,3.2078,3392.6,3392.2,0.2362]
[1735634619215,5.12197728,3392.8,3392.3,0.2362]
[1735634619414,5.12197728,3392.8,3392.1,3.2078]
[1735634619611,5.12197728,3392.8,3392.2,0.23621]
[1735634619811,4.62377728,3392.8,3392.2,0.23621]
[1735634620013,4.62377728,3392.8,3392.4,0.23619]
[1735634620222,0.23616,3392.9,3392.4,0.23619]
[1735634620616,0.23616,3392.9,3392.5,3.2078]
[1735634620818,0.4777,3393.4,3392.5,3.2078]
[1735634621017,0.4777,3393.4,3392.9,3.2078]
[1735634621817,0.23611,3393.7,3393.1,0.23614]
[1735634622019,0.23611,3393.7,3392.9,3.2078]
[1735634622020,4.85987728,3393.8,3393.3,0.23613]
[1735634622216,4.85987728,3393.8,3393.2,0.23614]
[1735634622518,4.62377728,3393.8,3393.0,0.993]
[1735634622819,4.62377728,3393.8,3393.4,3.2078]
[1735634623419,0.2361,3393.8,3393.4,3.2078]
[1735634623723,4.2802995,3394.3,3393.4,3.2078]
[1735634624117,0.23609,3394.0,3393.4,3.2078]
[1735634624917,4.2802995,3394.3,3393.4,3.2078]
[1735634625422,0.23609,3393.9,3393.4,3.2078]
[1735634625623,0.2361,3393.8,3393.4,3.2078]
[1735634625812,0.23607,3394.2,3393.4,3.2078]
[1735634626016,0.23608,3394.1,3393.4,3.44392]
[1735634626319,1.4355,3394.3,3393.5,0.23612]
[1735634626516,1.4355,3394.3,3393.8,3.2078]
[1735634626924,1.67156,3394.3,3393.8,3.2078]
[1735634627222,3.44385,3394.4,3393.8,3.2078]
[1735634627423,0.23606,3394.3,3393.8,3.2078]
[1735634628425,3.2078,3394.4,3393.8,3.2078]
[1735634628627,2.8447995,3394.3,3393.4,3.2078]
[1735634628927,0.2361,3393.7,3393.4,3.2078]
[1735634629125,1.294,3394.1,3393.4,3.2078]
[1735634629321,0.71779,3394.0,3393.4,3.44392]
[1735634629622,0.4817,3394.0,3393.5,0.23611]
[1735634629822,0.4817,3394.0,3393.8,3.2078]
[1735634630323,3.2078,3394.4,3393.9,0.23608]
[1735634630519,3.2078,3394.4,3393.9,0.5097]
[1735634630825,3.2078,3394.4,3393.9,0.74579]
[1735634631025,3.2078,3394.4,3393.9,0.5097]
[1735634631225,3.2078,3394.4,3393.8,3.2078]
[1735634631425,0.23609,3394.0,3393.8,3.2078]
[1735634631721,3.2078,3394.4,3393.8,3.2078]
[1735634631914,0.23608,3394.0,3393.8,3.2078]
[1735634632117,0.23609,3393.9,3393.8,3.2078]
[1735634632317,1.23209,3393.9,3393.8,3.2078]
[1735634632518,1.23209,3393.9,3392.5,2.8447995]
[1735634632719,0.23616,3392.9,3392.5,0.4784]
[1735634632927,0.23615,3393.1,3392.5,0.71458]
[1735634633122,0.23616,3393.0,3392.5,0.71458]
[1735634633624,1.294,3393.4,3392.5,0.4784]
[1735634633928,0.23617,3392.8,3392.5,0.4784]
[1735634634639,1.294,3393.4,3392.5,0.4784]
[1735634634640,0.23616,3393.0,3392.6,0.23618]
[1735634634924,1.294,3393.4,3392.8,3.2078]
[1735634635132,0.23614,3393.2,3392.8,3.2078]
[1735634635317,0.23614,3393.2,3392.9,0.74926]
[1735634635518,0.23615,3393.0,3392.9,0.5131]
[1735634636027,3.2078,3393.6,3392.9,0.5131]
[1735634636221,0.23615,3393.1,3392.9,0.5131]
[1735634637027,0.23615,3393.0,3392.9,0.5131]
[1735634637229,3.2078,3393.6,3392.9,0.5131]
[1735634637417,0.23614,3393.3,3392.9,0.74925]
[1735634637618,3.2078,3393.6,3392.9,0.5131]
[1735634637831,0.23614,3393.3,3392.9,0.74925]
[1735634638021,3.2078,3393.6,3392.9,0.5131]
[1735634638222,0.23614,3393.2,3392.9,0.5131]
[1735634638428,0.23613,3393.3,3392.9,0.74926]
[1735634638622,0.23614,3393.3,3392.9,0.5131]
[1735634638823,0.23612,3393.5,3393.0,0.23615]
[1735634639331,0.23611,3393.7,3393.2,0.23613]
[1735634639630,0.23611,3393.6,3393.2,0.23613]
[1735634640018,0.4928,3393.8,3392.9,0.5131]
[1735634640223,0.23612,3393.5,3392.9,0.5131]
[1735634640528,0.2361,3393.7,3392.9,0.5131]
[1735634640724,2.8447995,3393.5,3392.8,3.2078]
[1735634641030,0.23616,3392.9,3392.8,3.2078]
[1735634641930,1.4967,3393.1,3392.0,41.279]
[1735634641931,4.3414995,3393.1,3392.0,41.279]
[1735634642137,3.2078,3392.8,3392.0,0.479]
[1735634642430,0.23621,3392.2,3391.9,3.2078]
[1735634642628,3.2078,3392.8,3391.9,3.2078]
[1735634643130,0.2362,3392.4,3391.9,3.2078]
[1735634643629,3.2078,3392.8,3391.9,3.2078]
[1735634643832,0.2362,3392.3,3391.9,3.2078]
[1735634644221,3.2078,3392.8,3391.9,3.2078]
[1735634644425,0.23621,3392.3,3391.9,3.2078]
[1735634645027,0.23621,3392.2,3391.9,3.2078]
[1735634645227,3.2078,3392.8,3391.9,3.2078]
[1735634645526,0.23621,3392.2,3391.9,3.2078]
[1735634645928,0.23622,3392.0,3391.9,3.2078]
[1735634646829,0.23626,3391.4,3391.3,3.2078]
[1735634647028,0.23626,3391.4,3390.9,3.2078]
[1735634647235,0.23627,3391.3,3390.9,3.44409]
[1735634647532,3.2078,3392.0,3390.9,3.2078]
[1735634647533,0.23628,3391.2,3390.9,3.2078]
[1735634647724,0.23629,3391.0,3390.9,3.2078]
[1735634647926,3.8989995,3391.1,3390.4,3.2078]
[1735634648131,2.8447995,3390.7,3390.2,0.00304484]
[1735634648341,6.2889395,3390.3,3390.2,0.00304484]
[1735634648726,0.23637,3389.8,3389.7,4.40162641]
[1735634648928,3.0811695,3389.8,3389.7,4.40162641]
[1735634649330,0.2364,3389.5,3389.1,0.5012]
[1735634649530,0.23641,3389.3,3389.1,0.5012]
[1735634649734,3.2078,3389.5,3388.8,3.2078]
[1735634650028,2.8447995,3389.4,3388.8,3.2078]
[1735634650225,0.23643,3388.9,3388.8,3.2078]
[1735634650735,0.23641,3389.3,3388.8,3.2078]
[1735634651033,0.23643,3389.0,3388.8,3.2078]
[1735634651629,3.3476995,3389.4,3388.8,3.2078]
[1735634651831,0.23643,3388.9,3388.8,3.2078]
[1735634652228,6.0525995,3389.0,3388.0,0.5137]
[1735634652432,0.23646,3388.6,3388.0,0.5137]
[1735634652822,0.23644,3388.8,3388.0,0.7502]
[1735634653027,0.23645,3388.7,3388.0,0.5137]
[1735634653531,3.7107,3389.4,3388.6,3.2078]
[1735634653827,3.2078,3389.4,3388.6,3.2078]
[1735634654031,3.4442,3389.4,3389.3,40.8]
[1735634655242,3.2078,3389.4,3389.3,40.8]
[1735634655429,3.4442,3389.4,3389.3,40.8]
[1735634655734,3.2078,3389.4,3389.3,40.8]
[1735634656725,3.2078,3389.8,3389.3,40.8]
[1735634656925,0.2364,3389.5,3389.3,40.8]
[1735634657140,0.2364,3389.4,3389.3,40.8]
[1735634657440,0.2364,3389.4,3388.7,0.23645]
[1735634657646,6.0525995,3389.8,3388.6,3.6972]
[1735634657940,6.0525995,3389.8,3388.8,40.8]
[1735634658329,0.2364,3389.5,3388.8,41.03644]
[1735634659139,0.2364,3389.5,3388.8,40.8]
[1735634659535,6.0525995,3389.8,3388.8,40.8]
[1735634659831,0.2364,3389.5,3388.8,41.03644]
[1735634660040,6.0525995,3389.8,3389.1,0.23642]
[1735634660231,0.23639,3389.7,3389.0,0.23642]
[1735634660435,0.23639,3389.7,3389.1,0.23642]
[1735634660939,3.2078,3389.8,3389.0,3.44423]
[1735634660940,0.23639,3389.6,3389.0,3.44423]
[1735634661138,0.23638,3389.7,3389.0,3.44423]
[1735634661343,3.2078,3389.8,3389.0,3.2078]
[1735634661344,3.44418,3389.8,3389.0,3.2078]
[1735634661633,3.44418,3389.8,3389.1,0.73312]
[1735634662239,0.23638,3389.7,3389.1,0.73312]
[1735634662435,3.2078,3389.8,3389.1,0.4967]
[1735634662636,0.23639,3389.7,3389.1,0.73312]
[1735634662845,3.2078,3389.8,3389.1,0.4967]
[1735634663040,0.23641,3389.3,3389.1,0.4967]
[1735634663536,6.0525995,3389.8,3389.1,0.4967]
[1735634663738,3.2078,3389.8,3389.1,0.4967]
[1735634664141,0.23638,3389.7,3389.1,0.4967]
[1735634664438,3.2078,3389.8,3389.3,0.23641]
[1735634664738,3.2078,3390.5,3389.5,3.2078]
[1735634664944,3.2078,3390.5,3390.1,0.23635]
[1735634665140,3.2078,3391.1,3389.9,3.2078]
[1735634665443,3.2078,3391.1,3390.3,3.2078]
[1735634665740,3.2078,3391.1,3390.4,0.5198]
[1735634665940,3.2078,3391.1,3391.0,0.23629]
[1735634666132,3.2078,3391.1,3390.7,3.2078]
[1735634666444,0.23626,3391.5,3390.9,0.23629]
[1735634666740,0.23626,3391.5,3390.7,3.2078]
[1735634667137,0.23626,3391.5,3391.0,0.23629]
[1735634667330,3.2078,3391.8,3390.7,3.2078]
[1735634667539,3.2078,3391.8,3391.1,0.23628]
[1735634667747,3.2078,3391.8,3390.7,3.2078]
[1735634667937,0.23626,3391.5,3390.7,3.2078]
[1735634668138,0.23626,3391.5,3390.8,0.2363]
[1735634668338,0.23626,3391.5,3390.9,0.23629]
[1735634668542,3.2078,3391.8,3390.7,3.44411]
[1735634668738,11.0525995,3391.8,3390.7,3.2078]
[1735634669041,0.2363,3391.0,3390.7,3.2078]
[1735634669241,0.23629,3391.0,3390.7,3.2078]
[1735634669837,0.2363,3390.9,3390.7,3.2078]
[1735634670037,6.0525995,3391.4,3390.7,3.2078]
[1735634670038,0.2363,3390.8,3390.7,3.2078]
[1735634670742,0.2363,3390.8,3390.4,0.5198]
[1735634670743,0.23633,3390.5,3390.4,0.5198]
[1735634670945,0.23632,3390.6,3390.4,0.5198]
[1735634671147,3.2078,3391.0,3390.4,0.5198]
[1735634671746,0.23631,3390.7,3390.4,0.5198]
[1735634671941,3.2078,3391.0,3390.4,0.5198]
[1735634672838,3.2078,3391.8,3390.6,6.0525995]
[1735634673035,3.2078,3391.8,3391.0,3.2078]
[1735634673243,3.2078,3391.8,3391.6,0.23625]
[1735634673644,3.2078,3391.8,3391.2,0.4914]
[1735634674042,3.2078,3391.8,3391.5,0.23625]
[1735634674548,3.2078,3391.8,3391.2,0.4914]
[1735634674749,3.2078,3391.8,3391.4,0.23626]
[1735634675139,3.2078,3391.8,3391.5,0.23625]
[1735634675539,3.2078,3391.8,3391.2,0.4914]
[1735634675847,0.23625,3391.6,3391.2,0.4914]
[1735634676643,0.23626,3391.5,3391.2,0.4914]
[1735634676948,0.23628,3391.2,3391.1,0.4918]
[1735634677250,0.23628,3391.2,3389.7,41.39095]
[1735634677251,3.2078,3391.4,3390.5,3.2078]
[1735634677741,0.23625,3391.6,3391.1,0.23628]
[1735634677938,0.9885,3391.7,3390.9,3.2078]
[1735634678137,0.23627,3391.4,3390.9,3.2078]
[1735634678336,0.9885,3391.7,3390.9,3.4441]
[1735634678539,0.23626,3391.5,3391.0,0.23629]
[1735634678747,0.23626,3391.5,3390.9,3.2078]
[1735634678748,0.9885,3391.7,3390.9,3.44409]
[1735634678947,0.9885,3391.7,3391.0,0.23629]
[1735634679139,0.23625,3391.6,3391.0,0.23629]
[1735634679342,0.23626,3391.5,3391.0,0.23629]
[1735634679748,0.9885,3391.7,3390.9,3.2078]
[1735634680042,0.23628,3391.2,3390.9,3.2078]
[1735634680243,0.9885,3391.7,3390.9,3.4441]
[1735634680244,0.23625,3391.6,3390.9,3.4441]
[1735634680447,0.23627,3391.4,3390.9,3.4441]
[1735634680644,3.8332995,3391.7,3390.4,3.6952]
[1735634680836,0.23631,3390.7,3390.4,3.2078]
[1735634681040,0.23632,3390.6,3390.4,3.2078]
[1735634681442,0.23631,3390.7,3390.4,3.2078]
[1735634681749,0.23631,3390.8,3390.4,3.2078]
[1735634682156,0.23631,3390.7,3390.4,3.2078]
[1735634682448,0.5027,3390.9,3390.4,3.2078]
[1735634682647,0.739,3390.9,3390.4,3.44413]
[1735634682850,0.5027,3390.9,3390.4,3.2078]
[1735634683037,0.23631,3390.8,3390.4,3.2078]
[1735634683243,0.5027,3390.9,3390.5,0.23632]
[1735634683438,0.5027,3390.9,3390.4,3.2078]
[1735634683742,0.23632,3390.7,3390.4,3.2078]
[1735634683943,0.5027,3390.9,3390.4,3.2078]
[1735634683944,0.23633,3390.5,3390.4,3.2078]
[1735634686640,0.23638,3389.8,3389.5,0.9561]
[1735634686840,0.23638,3389.7,3389.0,3.2078]
[1735634687046,0.23639,3389.7,3389.1,0.23642]
[1735634687249,3.2078,3389.8,3389.0,3.2078]
[1735634687552,0.23641,3389.4,3389.0,3.2078]
[1735634687952,3.2078,3389.8,3389.0,3.2078]
[1735634688953,0.23642,3389.3,3389.0,3.2078]
[1735634689149,0.23642,3389.2,3389.0,3.2078]
[1735634689445,0.23639,3389.6,3389.0,3.2078]
[1735634689652,1.295,3389.7,3389.0,3.2078]
[1735634689852,0.23641,3389.3,3389.0,3.2078]
[1735634690250,0.5265,3389.6,3389.0,3.2078]
[1735634690450,0.76289,3389.6,3389.0,3.44423]
[1735634690659,1.53139,3389.7,3389.1,0.23642]
[1735634690852,1.295,3389.7,3389.0,3.2078]
[1735634691054,0.23639,3389.6,3389.0,3.2078]
[1735634691260,0.23639,3389.6,3389.0,3.44423]
[1735634691653,0.23641,3389.4,3389.0,3.2078]
[1735634692356,0.23641,3389.3,3389.0,3.2078]
[1735634692756,1.295,3389.7,3389.0,3.2078]
[1735634692757,0.2364,3389.4,3389.0,3.2078]
[1735634693461,1.295,3389.7,3389.0,3.2078]
[1735634693664,3.2078,3389.8,3389.0,3.2078]
[1735634693858,0.23638,3389.7,3389.1,0.23642]
[1735634694059,3.2078,3389.8,3389.0,3.2078]
[1735634694261,0.5062,3390.0,3389.0,3.2078]
[1735634694262,0.23636,3390.1,3389.5,0.23639]
[1735634694458,10.48832161,3390.8,3389.6,1.0506]
[1735634694660,10.48832161,3390.8,3389.9,3.2078]
[1735634694856,0.23636,3390.1,3389.6,1.0506]
[1735634695052,3.2078,3390.4,3389.7,40.8]
[1735634695363,0.23632,3390.6,3390.0,0.23636]
[1735634695857,0.23633,3390.5,3390.0,0.23636]
[1735634696664,0.23634,3390.4,3389.9,0.23636]
[1735634696966,0.23634,3390.4,3389.8,3.44417]
[1735634697764,0.23633,3390.4,3389.8,3.2078]
[1735634697967,0.23635,3390.2,3389.8,3.2078]
[1735634698762,0.23631,3390.7,3390.2,0.23634]
[1735634698960,0.23633,3390.5,3390.0,0.23635]
[1735634699460,0.23632,3390.6,3390.1,0.23635]
[1735634699664,0.23631,3390.7,3390.2,0.23635]
[1735634699960,0.23633,3390.4,3389.6,1.0506]
[1735634700171,6.0525995,3390.5,3389.6,1.28698]
[1735634700354,0.23633,3390.4,3389.7,0.23638]
[1735634700560,6.2889295,3390.5,3390.0,0.23636]
[1735634700858,0.23633,3390.4,3389.9,0.23636]
[1735634701060,3.44413,3390.5,3390.0,0.23636]
[1735634701266,0.23632,3390.6,3389.8,3.2078]
[1735634701466,0.23632,3390.6,3390.0,0.23636]
[1735634701664,0.23632,3390.6,3389.8,3.2078]
[1735634702069,1.53031,3390.7,3389.9,0.23637]
[1735634702363,1.294,3390.7,3390.2,0.23635]
[1735634702571,3.44409,3391.0,3390.5,0.23632]
[1735634702773,0.2363,3390.9,3390.4,0.23633]
[1735634703064,1.0444,3391.3,3390.6,3.2078]
[1735634703267,0.74147,3391.3,3390.8,0.2363]
[1735634703475,0.23629,3391.1,3390.6,3.44411]
[1735634703767,6.0525995,3391.4,3390.6,3.2078]
[1735634704266,0.23631,3390.7,3390.6,3.2078]
[1735634704471,6.0525995,3391.4,3390.5,0.4967]
[1735634704472,3.2078,3391.0,3390.5,0.4967]
[1735634704666,0.2363,3390.9,3390.5,0.4967]
[1735634704878,6.0525995,3391.4,3390.5,0.4967]
[1735634705166,0.23627,3391.3,3390.8,0.2363]
[1735634705367,3.2078,3391.4,3390.6,3.2078]
[1735634705563,0.23627,3391.4,3390.9,0.2363]
[1735634705766,10.01592161,3391.9,3390.6,3.2078]
[1735634705966,4.47243,3391.9,3391.3,0.23627]
[1735634706160,4.47243,3391.9,3391.4,1.0466]
[1735634706365,4.47243,3391.9,3391.4,1.28286]
[1735634706564,3.2078,3391.9,3391.4,1.0466]
[1735634706773,5.77972161,3392.3,3391.6,3.2078]
[1735634707073,5.77972161,3392.3,3392.1,0.23621]
[1735634707258,5.77972161,3392.3,3391.6,3.2078]
[1735634707259,5.77972161,3392.3,3392.2,0.77951]
[1735634707466,8.98752161,3392.7,3392.6,0.23618]
[1735634707965,8.98752161,3392.7,3392.3,0.5033]
[1735634707966,5.77972161,3392.7,3392.5,0.23618]
[1735634708166,5.77972161,3392.7,3392.4,3.2078]
[1735634708860,3.2078,3393.1,3392.4,3.2078]
[1735634709064,0.23616,3392.9,3392.4,3.2078]
[1735634709369,0.23615,3393.0,3392.4,3.2078]
[1735634709566,0.23617,3392.8,3392.4,3.2078]
[1735634709766,0.23618,3392.6,3392.4,3.2078]
[1735634709971,0.23619,3392.4,3392.2,0.5433]
[1735634710464,0.23619,3392.5,3392.2,0.5433]
[1735634710666,0.23618,3392.6,3392.2,0.5433]
[1735634710863,0.5101,3392.9,3392.2,0.5433]
[1735634711067,0.23618,3392.6,3392.2,0.5433]
[1735634711263,3.2078,3392.7,3392.2,0.5433]
[1735634711573,0.23621,3392.3,3392.0,3.2078]
[1735634711871,0.2362,3392.4,3392.0,3.2078]
[1735634712766,3.2078,3392.7,3392.1,0.23621]
[1735634712966,0.2362,3392.3,3392.0,3.2078]
[1735634713168,0.23619,3392.4,3391.8,0.74803]
[1735634713569,3.2078,3392.7,3391.8,0.74803]
[1735634713570,3.2078,3392.7,3391.8,0.5118]
[1735634713874,0.23622,3392.1,3391.8,0.5118]
[1735634714067,6.0525995,3392.7,3391.8,0.5118]
[1735634714068,0.23623,3391.9,3391.8,0.5118]
[1735634714274,0.2362,3392.3,3391.8,0.5118]
[1735634714469,6.0525995,3392.7,3391.8,0.5118]
[1735634714670,6.0525995,3392.7,3392.0,3.2078]
[1735634714671,5.77972161,3392.7,3392.0,3.2078]
[1735634715073,6.01590161,3392.7,3392.1,0.23621]
[1735634715278,5.77972161,3392.7,3392.0,3.2078]